fUST/lending_fUST_20240624
["ID","MTS","AMOUNT","RATE_DAILY","PERIOD"]
[330211785,1719167443187,-877.88,0.00016438,2]
[330211786,1719167443197,-500.0,0.00016438,2]
[330211787,1719167443207,-500.0,0.00016438,2]
[330211788,1719167443218,-500.0,0.00016438,2]
[330211789,1719167443228,-500.0,0.00016438,2]
[330211790,1719167443244,-1627.49,0.00016438,2]
[330211791,1719167443255,-4102.62,0.00016438,2]
[330211792,1719167443264,-250.0,0.00016438,2]
[330211793,1719167443274,-500.0,0.00016438,2]
[330211794,1719167443284,-199.81192946,0.00016438,2]
[330211795,1719167443294,-500.0,0.00016438,2]
[330211797,1719167443304,-258.10119804,0.00016438,2]
[330211799,1719167443314,-2497.94,0.00016438,2]
[330211801,1719167443324,-22621.08,0.00016438,2]
[330211803,1719167443334,-517.89,0.00016438,2]
[330211806,1719167443345,-500.0,0.00016438,2]
[330211807,1719167443354,-154.83742071,0.00016461,2]
[330211808,1719167443365,-154.83742071,0.00016461,2]
[330211809,1719167443375,-373.67425734,0.00016461,2]
[330211810,1719167443384,-513.21,0.00016465,2]
[330211811,1719167443395,-191.09191803,0.00016522,2]
[330211812,1719167443405,-10560.92625688,0.0001657,2]
[330211813,1719167443416,-13381.93334557,0.00016589,2]
[330211814,1719167443426,-11117.37808337,0.00016589,2]
[330211815,1719167443436,-160.887888,0.00016589,2]
[330211816,1719167443446,-160.887888,0.00016589,2]
[330211817,1719167443455,-513.21,0.00016711,2]
[330211820,1719167443465,-513.21,0.00016711,2]
[330211822,1719167443475,-513.21,0.00016711,2]
[330211824,1719167443485,-513.21,0.00016711,2]
[330211826,1719167443499,-513.21,0.00016711,2]
[330211828,1719167443508,-513.21,0.00016711,2]
[330211830,1719167443518,-513.21,0.00016711,2]
[330211832,1719167443527,-513.21,0.00016711,2]
[330211834,1719167443536,-513.21,0.00016711,2]
[330211836,1719167443546,-513.21,0.00016711,2]
[330211837,1719167443556,-513.21,0.00016711,2]
[330211839,1719167443565,-513.21,0.00016711,2]
[330211840,1719167443575,-513.27759075,0.00016711,2]
[330211841,1719167443584,-500.0,0.00016712,2]
[330211842,1719167443594,-500.0,0.00016712,2]
[330211843,1719167443603,-500.0,0.00016712,2]
[330211844,1719167443614,-501.15,0.00016712,2]
[330211845,1719167443623,-500.0,0.00016712,2]
[330211846,1719167443633,-500.0,0.00016712,2]
[330211847,1719167443643,-500.0,0.00016712,2]
[330211848,1719167443652,-605.65,0.00016712,2]
[330211849,1719167443662,-500.0,0.00016712,2]
[330211850,1719167443672,-509.42238587,0.00016712,2]
[330211852,1719167443681,-500.0,0.00016712,2]
[330211854,1719167443692,-500.0,0.00016712,2]
[330211856,1719167443702,-500.0,0.00016712,2]
[330211858,1719167443712,-511.84843862,0.00016712,2]
[330211860,1719167443721,-500.0,0.00016712,2]
[330211862,1719167443731,-500.0,0.00016712,2]
[330211864,1719167443749,-503.83079557,0.00016712,2]
[330211866,1719167443758,-500.0,0.00016712,2]
[330211868,1719167443768,-500.0,0.00016712,2]
[330211870,1719167443777,-631.07,0.00016712,2]
[330211872,1719167443787,-500.0,0.00016712,2]
[330211874,1719167443796,-500.0,0.00016712,2]
[330211876,1719167443806,-806.32,0.00016712,2]
[330211878,1719167443815,-520.59927141,0.00016712,2]
[330211880,1719167443825,-500.0,0.00016712,2]
[330211882,1719167443834,-512.44925128,0.00016712,2]
[330211885,1719167443845,-500.0,0.00016712,2]
[330211887,1719167443855,-500.0,0.00016712,2]
[330211889,1719167443864,-500.0,0.00016712,2]
[330211891,1719167443874,-716.61,0.00016712,2]
[330211893,1719167443883,-500.0,0.00016712,2]
[330211895,1719167443893,-500.0,0.00016712,2]
[330211897,1719167443902,-500.0,0.00016712,2]
[330211898,1719167443911,-500.0,0.00016712,2]
[330211901,1719167443921,-500.0,0.00016712,2]
[330211903,1719167443930,-500.0,0.00016712,2]
[330211905,1719167443940,-500.0,0.00016712,2]
[330211907,1719167443950,-500.0,0.00016712,2]
[330211908,1719167443959,-293.07732743,0.00016712,2]
[330211910,1719167443971,-500.0,0.00016712,2]
[330211912,1719167443981,-500.0,0.00016712,2]
[330211914,1719167443995,-500.0,0.00016712,2]
[330211916,1719167444005,-500.0,0.00016712,2]
[330211918,1719167444015,-500.0,0.00016712,2]
[330211920,1719167444024,-577.25,0.00016712,2]
[330211923,1719167444034,-151.0,0.00016712,2]
[330211926,1719167444043,-151.0,0.00016712,2]
[330211928,1719167444055,-215.946329,0.00016712,2]
[330211930,1719167444065,-500.0,0.00016712,2]
[330211932,1719167444075,-500.0,0.00016712,2]
[330211934,1719167444084,-500.0,0.00016712,2]
[330211936,1719167444094,-500.0,0.00016712,2]
[330211938,1719167444103,-376.7183395,0.00016712,2]
[330211940,1719167444112,-500.0,0.00016712,2]
[330211941,1719167444121,-1691.3,0.00016712,2]
[330211944,1719167444131,-1076.29,0.00016712,2]
[330211945,1719167444140,-520.51810752,0.00016712,2]
[330211948,1719167444149,-500.0,0.00016712,2]
[330211949,1719167444158,-689.81,0.00016712,2]
[330211951,1719167444167,-596.73,0.00016712,2]
[330211953,1719167444176,-500.0,0.00016712,2]
[330211954,1719167444186,-500.0,0.00016712,2]
[330211955,1719167444195,-500.0,0.00016712,2]
[330211956,1719167444204,-514.13403681,0.00016712,2]
[330211957,1719167444214,-500.0,0.00016712,2]
[330211958,1719167444223,-500.0,0.00016712,2]
[330211959,1719167444232,-500.0,0.00016712,2]
[330211960,1719167444242,-500.0,0.00016712,2]
[330211961,1719167444252,-160.887888,0.00016712,2]
[330211962,1719167444262,-160.887888,0.00016712,2]
[330211963,1719167444271,-160.887888,0.00016712,2]
[330211964,1719167444280,-160.887888,0.00016712,2]
[330211965,1719167444290,-519.71546097,0.00016712,2]
[330211966,1719167444299,-160.887888,0.00016712,2]
[330211967,1719167444309,-160.887888,0.00016712,2]
[330211968,1719167444318,-160.887888,0.00016712,2]
[330211969,1719167444328,-160.887888,0.00016712,2]
[330211970,1719167444337,-500.0,0.00016712,2]
[330211971,1719167444346,-500.0,0.00016712,2]
[330211972,1719167444356,-1164.73,0.00016712,2]
[330211973,1719167444365,-500.0,0.00016712,2]
[330211974,1719167444374,-500.0,0.00016712,2]
[330211975,1719167444383,-519.01,0.00016712,2]
[330211976,1719167444393,-663.63,0.00016712,2]
[330211977,1719167444402,-500.0,0.00016712,2]
[330211978,1719167444411,-668.76,0.00016712,2]
[330211979,1719167444420,-500.0,0.00016712,2]
[330211980,1719167444430,-500.0,0.00016712,2]
[330211981,1719167444440,-1157.53,0.00016712,2]
[330211982,1719167444450,-500.0,0.00016712,2]
[330211983,1719167444459,-18.17426349,0.00016712,2]
[330211984,1719167444572,-481.82573651,0.00016712,2]
[330211985,1719167444581,-578.23,0.00016712,2]
[330211986,1719167444591,-500.0,0.00016712,2]
[330211987,1719167444600,-500.0,0.00016712,2]
[330211988,1719167444609,-1972.42,0.00016712,2]
[330211989,1719167444618,-1648.27,0.00016712,2]
[330211990,1719167444628,-500.0,0.00016712,2]
[330211991,1719167444637,-566.3,0.00016712,2]
[330211992,1719167444647,-500.0,0.00016712,2]
[330211993,1719167444656,-500.0,0.00016712,2]
[330211994,1719167444666,-500.0,0.00016712,2]
[330211995,1719167444676,-500.0,0.00016712,2]
[330211996,1719167444685,-500.0,0.00016712,2]
[330211997,1719167444694,-500.0,0.00016712,2]
[330211998,1719167444703,-500.0,0.00016712,2]
[330211999,1719167444713,-500.0,0.00016712,2]
[330212000,1719167444722,-451.18,0.00016712,2]
[330212001,1719167444731,-500.0,0.00016712,2]
[330212002,1719167444741,-503.58,0.00016712,2]
[330212003,1719167444750,-1307.6,0.00016712,2]
[330212004,1719167444759,-550.42139868,0.00016712,2]
[330212005,1719167444769,-4849.26,0.00016712,2]
[330212006,1719167444778,-1626.0,0.00016712,2]
[330212007,1719167444787,-500.0,0.00016712,2]
[330212008,1719167444797,-500.0,0.00016712,2]
[330212009,1719167444807,-1499.81,0.00016712,2]
[330212010,1719167444817,-500.0,0.00016712,2]
[330212011,1719167444826,-500.0,0.00016712,2]
[330212012,1719167444836,-500.0,0.00016712,2]
[330212013,1719167444845,-500.0,0.00016712,2]
[330212014,1719167444855,-500.0,0.00016712,2]
[330212015,1719167444863,-1270.87,0.00016712,2]
[330212016,1719167444873,-500.0,0.00016712,2]
[330212017,1719167444882,-500.0,0.00016712,2]
[330212018,1719167444891,-500.0,0.00016712,2]
[330212019,1719167444900,-500.0,0.00016712,2]
[330212020,1719167444909,-500.0,0.00016712,2]
[330212021,1719167444919,-500.0,0.00016712,2]
[330212022,1719167444929,-500.0,0.00016712,2]
[330212023,1719167444938,-691.16,0.00016712,2]
[330212024,1719167444948,-500.0,0.00016712,2]
[330212025,1719167444957,-500.0,0.00016712,2]
[330212026,1719167444973,-2006.79,0.00016712,2]
[330212027,1719167444984,-500.0,0.00016712,2]
[330212028,1719167444993,-2041.43,0.00016712,2]
[330212029,1719167445003,-500.0,0.00016712,2]
[330212030,1719167445014,-500.0,0.00016712,2]
[330212031,1719167445024,-2286.72,0.00016712,2]
[330212032,1719167445035,-500.0,0.00016712,2]
[330212033,1719167445046,-500.0,0.00016712,2]
[330212034,1719167445057,-979.54,0.00016712,2]
[330212035,1719167445066,-500.0,0.00016712,2]
[330212036,1719167445076,-500.0,0.00016712,2]
[330212037,1719167445085,-813.19,0.00016712,2]
[330212038,1719167445096,-500.0,0.00016712,2]
[330212039,1719167445106,-500.0,0.00016712,2]
[330212040,1719167445117,-500.0,0.00016712,2]
[330212041,1719167445128,-533.95,0.00016712,2]
[330212042,1719167445138,-502.62295213,0.00016712,2]
[330212043,1719167445148,-569.44802936,0.00016712,2]
[330212044,1719167445157,-500.0,0.00016712,2]
[330212045,1719167445279,-500.0,0.00016712,2]
[330212046,1719167445288,-500.0,0.00016712,2]
[330212047,1719167445298,-519.67357904,0.00016712,2]
[330212048,1719167445307,-721.52,0.00016712,2]
[330212049,1719167445317,-500.0,0.00016712,2]
[330212050,1719167445326,-500.0,0.00016712,2]
[330212051,1719167445336,-559.56,0.00016712,2]
[330212052,1719167445345,-500.0,0.00016712,2]
[330212053,1719167445354,-500.0,0.00016712,2]
[330212054,1719167445364,-262.69141452,0.00016712,2]
[330212093,1719167446957,-2392.6,0.00015468,2]
[330212100,1719167447022,-461.62925047,0.00015468,2]
[330212102,1719167447032,-154.83742071,0.00016001,2]
[330212104,1719167447042,-154.83742071,0.00016375,2]
[330212106,1719167447053,-490.22115977,0.00016381,2]
[330212107,1719167447062,-500.0,0.00016438,2]
[330212108,1719167447072,-500.0,0.00016438,2]
[330212109,1719167447081,-10560.92625688,0.00016525,2]
[330212110,1719167447091,-237.30858548,0.00016712,2]
[330212111,1719167447100,-850.64,0.00016712,2]
[330212112,1719167447109,-500.0,0.00016712,2]
[330212113,1719167447118,-500.0,0.00016712,2]
[330212114,1719167447127,-500.0,0.00016712,2]
[330212115,1719167447136,-1108.2,0.00016712,2]
[330212116,1719167447146,-500.0,0.00016712,2]
[330212117,1719167447156,-1712.84,0.00016712,2]
[330212118,1719167447165,-500.0,0.00016712,2]
[330212119,1719167447174,-689.4,0.00016712,2]
[330212120,1719167447183,-500.0,0.00016712,2]
[330212121,1719167447192,-500.0,0.00016712,2]
[330212122,1719167447201,-620.72,0.00016712,2]
[330212123,1719167447210,-500.0,0.00016712,2]
[330212124,1719167447219,-500.0,0.00016712,2]
[330212125,1719167447228,-500.0,0.00016712,2]
[330212126,1719167447237,-500.0,0.00016712,2]
[330212127,1719167447246,-505.16390597,0.00016712,2]
[330212128,1719167447255,-1352.88,0.00016712,2]
[330212129,1719167447264,-6456.79,0.00016712,2]
[330212130,1719167447273,-500.0,0.00016712,2]
[330212131,1719167447282,-500.0,0.00016712,2]
[330212132,1719167447291,-564.29,0.00016712,2]
[330212133,1719167447299,-500.0,0.00016712,2]
[330212134,1719167447309,-539.57,0.00016712,2]
[330212135,1719167447319,-500.0,0.00016712,2]
[330212136,1719167447329,-500.0,0.00016712,2]
[330212137,1719167447338,-500.0,0.00016712,2]
[330212138,1719167447347,-500.0,0.00016712,2]
[330212139,1719167447356,-500.0,0.00016712,2]
[330212140,1719167447366,-1535.59,0.00016712,2]
[330212141,1719167447375,-1567.17,0.00016712,2]
[330212142,1719167447384,-6590.55,0.00016712,2]
[330212143,1719167447506,-1455.42,0.00016712,2]
[330212144,1719167447515,-597.88,0.00016712,2]
[330212145,1719167447524,-196.874197,0.00016712,2]
[330212146,1719167447533,-582.32,0.00016712,2]
[330212147,1719167447543,-37462.3,0.00016712,2]
[330212148,1719167447552,-685.17,0.00016712,2]
[330212149,1719167447562,-343.72946294,0.00016712,2]
[330212150,1719167447571,-500.0,0.00016712,2]
[330212151,1719167447580,-500.0,0.00016712,2]
[330212152,1719167447591,-500.0,0.00016712,2]
[330212153,1719167447600,-151.0,0.00016712,2]
[330212154,1719167447609,-151.0,0.00016712,2]
[330212155,1719167447618,-151.0,0.00016712,2]
[330212156,1719167447628,-151.0,0.00016712,2]
[330212157,1719167447638,-1819.39,0.00016712,2]
[330212158,1719167447648,-2870.51,0.00016712,2]
[330212159,1719167447657,-500.0,0.00016712,2]
[330212160,1719167447666,-3566.34,0.00016712,2]
[330212161,1719167447676,-544.25523033,0.00016712,2]
[330212162,1719167447684,-699.71,0.00016712,2]
[330212163,1719167447693,-858.13,0.00016712,2]
[330212164,1719167447703,-500.0,0.00016712,2]
[330212165,1719167447711,-500.0,0.00016712,2]
[330212166,1719167447721,-969.14,0.00016712,2]
[330212167,1719167447730,-500.0,0.00016712,2]
[330212168,1719167447742,-1161.74,0.00016712,2]
[330212169,1719167447751,-7184.37,0.00016712,2]
[330212170,1719167447760,-734.16,0.00016712,2]
[330212171,1719167447769,-500.0,0.00016712,2]
[330212172,1719167447778,-500.0,0.00016712,2]
[330212173,1719167447787,-500.0,0.00016712,2]
[330212174,1719167447797,-500.0,0.00016712,2]
[330212175,1719167447807,-500.0,0.00016712,2]
[330212176,1719167447817,-699.16,0.00016712,2]
[330212177,1719167447826,-1438.99,0.00016712,2]
[330212178,1719167447836,-500.0,0.00016712,2]
[330212179,1719167447846,-590.36,0.00016712,2]
[330212180,1719167447855,-500.0,0.00016712,2]
[330212181,1719167447865,-500.0,0.00016712,2]
[330212182,1719167447874,-500.0,0.00016712,2]
[330212183,1719167447884,-500.0,0.00016712,2]
[330212184,1719167447893,-1057.2,0.00016712,2]
[330212185,1719167447902,-696.05,0.00016712,2]
[330212186,1719167447911,-766.17,0.00016712,2]
[330212187,1719167447921,-625.07,0.00016712,2]
[330212188,1719167447931,-7387.21,0.00016712,2]
[330212189,1719167447940,-500.0,0.00016712,2]
[330212190,1719167447949,-500.0,0.00016712,2]
[330212191,1719167447958,-500.0,0.00016712,2]
[330212192,1719167447974,-1362.64,0.00016712,2]
[330212193,1719167447984,-1216.8,0.00016712,2]
[330212194,1719167447994,-500.0,0.00016712,2]
[330212195,1719167448003,-198.0,0.00016712,2]
[330212196,1719167448015,-1363.0,0.00016712,2]
[330212197,1719167448025,-500.0,0.00016712,2]
[330212198,1719167448035,-151.0,0.00016712,2]
[330212199,1719167448044,-151.0,0.00016712,2]
[330212200,1719167448056,-1407.15,0.00016712,2]
[330212201,1719167448065,-151.0,0.00016712,2]
[330212202,1719167448075,-151.0,0.00016712,2]
[330212203,1719167448084,-500.0,0.00016712,2]
[330212204,1719167448094,-500.0,0.00016712,2]
[330212205,1719167448104,-500.0,0.00016712,2]
[330212206,1719167448114,-500.0,0.00016712,2]
[330212207,1719167448123,-500.0,0.00016712,2]
[330212208,1719167448135,-500.0,0.00016712,2]
[330212209,1719167448144,-843.83,0.00016712,2]
[330212210,1719167448154,-526.18,0.00016712,2]
[330212211,1719167448163,-572.05,0.00016712,2]
[330212212,1719167448172,-500.0,0.00016712,2]
[330212213,1719167448182,-4544.75,0.00016712,2]
[330212214,1719167448192,-500.0,0.00016712,2]
[330212215,1719167448202,-531.62652508,0.00016712,2]
[330212216,1719167448211,-500.0,0.00016712,2]
[330212217,1719167448221,-500.0,0.00016712,2]
[330212218,1719167448230,-500.0,0.00016712,2]
[330212219,1719167448242,-626.26,0.00016712,2]
[330212220,1719167448253,-3261.21,0.00016712,2]
[330212221,1719167448262,-151.0,0.00016712,2]
[330212222,1719167448270,-151.0,0.00016712,2]
[330212223,1719167448279,-151.0,0.00016712,2]
[330212224,1719167448289,-151.0,0.00016712,2]
[330212225,1719167448298,-151.0,0.00016712,2]
[330212226,1719167448308,-2120.69,0.00016712,2]
[330212227,1719167448317,-594.70103467,0.00016712,2]
[330212228,1719167448327,-500.0,0.00016712,2]
[330212229,1719167448337,-1460.31,0.00016712,2]
[330212230,1719167448347,-4924.79,0.00016712,2]
[330212231,1719167448357,-508.66610979,0.00016712,2]
[330212232,1719167448366,-500.0,0.00016712,2]
[330212233,1719167448375,-536.97,0.00016712,2]
[330212234,1719167448384,-955.24,0.00016712,2]
[330212235,1719167448394,-581.44,0.00016712,2]
[330212236,1719167448403,-500.0,0.00016712,2]
[330212237,1719167448412,-23686.56,0.00016712,2]
[330212238,1719167448421,-446.21114557,0.00016712,2]
[330212239,1719167448431,-616.03,0.00016712,2]
[330212240,1719167448441,-151.0,0.00016712,2]
[330212241,1719167448450,-271.77677,0.00016712,2]
[330212242,1719167448459,-500.0,0.00016712,2]
[330212243,1719167448470,-1175.14,0.00016712,2]
[330212244,1719167448479,-500.0,0.00016712,2]
[330212245,1719167448492,-500.0,0.00016712,2]
[330212246,1719167448501,-410.84236672,0.00016712,2]
[330212247,1719167448510,-1674.04,0.00016712,2]
[330212248,1719167448519,-7133.34,0.00016712,2]
[330212249,1719167448528,-500.0,0.00016712,2]
[330212250,1719167448537,-567.36,0.00016712,2]
[330212251,1719167448546,-500.0,0.00016712,2]
[330212252,1719167448555,-2051.58,0.00016712,2]
[330212253,1719167448565,-2910.41,0.00016712,2]
[330212254,1719167448575,-334.303043,0.00016712,2]
[330212255,1719167448585,-700.35,0.00016712,2]
[330212256,1719167448594,-334.303043,0.00016712,2]
[330212257,1719167448603,-334.303043,0.00016712,2]
[330212258,1719167448612,-334.303043,0.00016712,2]
[330212259,1719167448622,-334.303043,0.00016712,2]
[330212260,1719167448631,-334.303043,0.00016712,2]
[330212261,1719167448641,-334.303043,0.00016712,2]
[330212262,1719167448651,-334.303043,0.00016712,2]
[330212263,1719167448660,-500.0,0.00016712,2]
[330212264,1719167448669,-532.20131824,0.00016712,2]
[330212265,1719167448679,-1088.24,0.00016712,2]
[330212266,1719167448688,-7404.92,0.00016712,2]
[330212267,1719167448698,-500.0,0.00016712,2]
[330212268,1719167448707,-500.0,0.00016712,2]
[330212269,1719167448717,-500.0,0.00016712,2]
[330212270,1719167448726,-1325.08,0.00016712,2]
[330212271,1719167448737,-1674.28,0.00016712,2]
[330212272,1719167448751,-500.0,0.00016712,2]
[330212273,1719167448760,-877.88,0.00016712,2]
[330212274,1719167448769,-500.0,0.00016712,2]
[330212275,1719167448778,-500.0,0.00016712,2]
[330212276,1719167448787,-439.76388421,0.00016712,2]
[330212277,1719167448796,-500.0,0.00016712,2]
[330212278,1719167448805,-1627.49,0.00016712,2]
[330212279,1719167448814,-4102.62,0.00016712,2]
[330212280,1719167448823,-250.0,0.00016712,2]
[330212281,1719167448832,-500.0,0.00016712,2]
[330212282,1719167448840,-500.0,0.00016712,2]
[330212283,1719167448850,-2497.94,0.00016712,2]
[330212284,1719167448859,-22621.08,0.00016712,2]
[330212285,1719167448868,-517.89,0.00016712,2]
[330212286,1719167448878,-500.0,0.00016712,2]
[330212287,1719167448888,-500.0,0.00016712,2]
[330212288,1719167448898,-334.303043,0.00016718,2]
[330212289,1719167448907,-334.303043,0.00016718,2]
[330212290,1719167448917,-625.76686056,0.00016858,2]
[330212291,1719167448927,-357.2,0.00016931,2]
[330212292,1719167448936,-500.0,0.00016986,2]
[330212293,1719167448945,-500.0,0.00016986,2]
[330212294,1719167448954,-563.60170353,0.00016986,2]
[330212295,1719167448964,-500.0,0.00016986,2]
[330212296,1719167448978,-500.0,0.00016986,2]
[330212297,1719167448989,-605.65,0.00016986,2]
[330212298,1719167448998,-500.0,0.00016986,2]
[330212299,1719167449007,-623.24271507,0.00016986,2]
[330212300,1719167449017,-500.0,0.00016986,2]
[330212301,1719167449026,-500.0,0.00016986,2]
[330212302,1719167449035,-500.0,0.00016986,2]
[330212303,1719167449045,-500.0,0.00016986,2]
[330212304,1719167449057,-500.0,0.00016986,2]
[330212305,1719167449068,-599.99246089,0.00016986,2]
[330212306,1719167449078,-631.07,0.00016986,2]
[330212307,1719167449087,-500.0,0.00016986,2]
[330212308,1719167449097,-478.5,0.00016986,2]
[330212309,1719167449106,-806.32,0.00016986,2]
[330212310,1719167449116,-500.0,0.00016986,2]
[330212311,1719167449125,-500.0,0.00016986,2]
[330212312,1719167449134,-500.0,0.00016986,2]
[330212313,1719167449144,-500.0,0.00016986,2]
[330212314,1719167449153,-716.61,0.00016986,2]
[330212315,1719167449162,-629.63613237,0.00016986,2]
[330212316,1719167449172,-500.0,0.00016986,2]
[330212317,1719167449181,-500.0,0.00016986,2]
[330212318,1719167449190,-500.0,0.00016986,2]
[330212319,1719167449199,-500.0,0.00016986,2]
[330212320,1719167449209,-500.0,0.00016986,2]
[330212321,1719167449218,-500.0,0.00016986,2]
[330212322,1719167449227,-541.63603676,0.00016986,2]
[330212323,1719167449237,-500.0,0.00016986,2]
[330212324,1719167449246,-500.0,0.00016986,2]
[330212325,1719167449255,-500.0,0.00016986,2]
[330212326,1719167449265,-500.0,0.00016986,2]
[330212327,1719167449274,-500.0,0.00016986,2]
[330212328,1719167449284,-577.25,0.00016986,2]
[330212329,1719167449294,-525.2791973,0.00016986,2]
[330212330,1719167449303,-500.0,0.00016986,2]
[330212331,1719167449312,-499.12441848,0.00016986,2]
[330212332,1719167449322,-500.0,0.00016986,2]
[330212333,1719167449432,-484.67123756,0.00016986,2]
[330212334,1719167449443,-1691.3,0.00016986,2]
[330212335,1719167449453,-1076.29,0.00016986,2]
[330212336,1719167449462,-500.0,0.00016986,2]
[330212337,1719167449472,-689.81,0.00016986,2]
[330212338,1719167449482,-596.73,0.00016986,2]
[330212339,1719167449492,-318.00354158,0.00016986,2]
[330212340,1719167449501,-500.0,0.00016986,2]
[330212341,1719167449510,-500.0,0.00016986,2]
[330212342,1719167449520,-500.0,0.00016986,2]
[330212343,1719167449529,-500.0,0.00016986,2]
[330212344,1719167449539,-500.0,0.00016986,2]
[330212345,1719167449549,-500.0,0.00016986,2]
[330212346,1719167449558,-160.887888,0.00016986,2]
[330212347,1719167449567,-160.887888,0.00016986,2]
[330212348,1719167449577,-160.887888,0.00016986,2]
[330212349,1719167449586,-160.887888,0.00016986,2]
[330212350,1719167449596,-160.887888,0.00016986,2]
[330212351,1719167449606,-160.887888,0.00016986,2]
[330212352,1719167449615,-160.887888,0.00016986,2]
[330212353,1719167449625,-160.887888,0.00016986,2]
[330212354,1719167449634,-431.29607464,0.00016986,2]
[330212355,1719167449644,-500.0,0.00016986,2]
[330212356,1719167449654,-1164.73,0.00016986,2]
[330212357,1719167449663,-500.0,0.00016986,2]
[330212358,1719167449673,-500.0,0.00016986,2]
[330212359,1719167449683,-663.63,0.00016986,2]
[330212360,1719167449692,-668.76,0.00016986,2]
[330212361,1719167449701,-611.08417766,0.00016986,2]
[330212362,1719167449711,-1157.53,0.00016986,2]
[330212363,1719167449720,-500.0,0.00016986,2]
[330212364,1719167449730,-500.0,0.00016986,2]
[330212365,1719167449741,-578.23,0.00016986,2]
[330212366,1719167449750,-500.0,0.00016986,2]
[330212367,1719167449759,-500.0,0.00016986,2]
[330212368,1719167449769,-1972.42,0.00016986,2]
[330212369,1719167449778,-1648.27,0.00016986,2]
[330212370,1719167449788,-500.0,0.00016986,2]
[330212371,1719167449797,-566.3,0.00016986,2]
[330212372,1719167449806,-500.0,0.00016986,2]
[330212373,1719167449815,-500.0,0.00016986,2]
[330212374,1719167449825,-500.0,0.00016986,2]
[330212375,1719167449834,-500.0,0.00016986,2]
[330212376,1719167449843,-500.0,0.00016986,2]
[330212377,1719167449853,-500.0,0.00016986,2]
[330212378,1719167449862,-500.0,0.00016986,2]
[330212379,1719167449872,-420.82628254,0.00016986,2]
[330212380,1719167449881,-500.0,0.00016986,2]
[330212381,1719167449891,-503.58,0.00016986,2]
[330212382,1719167449900,-1307.6,0.00016986,2]
[330212383,1719167449910,-4849.26,0.00016986,2]
[330212384,1719167449919,-1626.0,0.00016986,2]
[330212385,1719167449929,-500.0,0.00016986,2]
[330212386,1719167449938,-500.0,0.00016986,2]
[330212387,1719167449947,-1499.81,0.00016986,2]
[330212388,1719167449958,-500.0,0.00016986,2]
[330212389,1719167449969,-500.0,0.00016986,2]
[330212390,1719167449981,-500.0,0.00016986,2]
[330212391,1719167449992,-500.0,0.00016986,2]
[330212392,1719167450001,-500.0,0.00016986,2]
[330212393,1719167450013,-1270.87,0.00016986,2]
[330212394,1719167450023,-500.0,0.00016986,2]
[330212395,1719167450032,-500.0,0.00016986,2]
[330212396,1719167450041,-500.0,0.00016986,2]
[330212397,1719167450054,-500.0,0.00016986,2]
[330212398,1719167450063,-500.0,0.00016986,2]
[330212399,1719167450073,-500.0,0.00016986,2]
[330212400,1719167450082,-691.16,0.00016986,2]